fUST/lending_fUST_20250730
["ID","MTS","AMOUNT","RATE_DAILY","PERIOD"]
[376113257,1753867842009,-500.0,0.00019173,2]
[376113259,1753867842021,-231.09006025,0.00019173,2]
[376113262,1753867842033,-501.1504341,0.00019173,2]
[376113263,1753867842043,-504.20801351,0.00019173,2]
[376113265,1753867842052,-163.813074,0.00019178,2]
[376113268,1753867842062,-200.0,0.0001921,15]
[376113270,1753867842072,-200.0,0.0001921,15]
[376113272,1753867842081,-200.0,0.0001921,15]
[376113273,1753867842091,-200.0,0.0001921,15]
[376113276,1753867842100,-200.0,0.0001921,15]
[376113278,1753867842110,-200.0,0.0001921,15]
[376113279,1753867842119,-200.0,0.0001921,15]
[376113281,1753867842132,-200.0,0.0001921,15]
[376113283,1753867842144,-200.0,0.0001921,15]
[376113285,1753867842153,-200.0,0.0001921,15]
[376113287,1753867842162,-200.0,0.0001921,15]
[376113289,1753867842172,-200.0,0.0001921,15]
[376113291,1753867842181,-200.0,0.0001921,15]
[376113293,1753867842191,-200.0,0.0001921,15]
[376113295,1753867842200,-200.0,0.0001921,15]
[376113297,1753867842209,-200.0,0.0001921,15]
[376113299,1753867842220,-19480.32186835,0.00019271,2]
[376113301,1753867842230,-298.0,0.00019361,2]
[376113303,1753867842239,-500.0,0.00019373,2]
[376113305,1753867842249,-460.0,0.00019381,2]
[376113308,1753867842259,-460.0,0.00019381,2]
[376113310,1753867842272,-460.0,0.00019381,2]
[376113312,1753867842281,-460.0,0.00019381,2]
[376113313,1753867842290,-460.0,0.00019381,2]
[376113315,1753867842300,-460.0,0.00019381,2]
[376113317,1753867842309,-7092.50593747,0.00019382,2]
[376113319,1753867842319,-428.65507372,0.00019382,2]
[376113321,1753867842329,-460.0,0.00019382,2]
[376113323,1753867842338,-460.0,0.00019382,2]
[376113325,1753867842347,-460.0,0.00019382,2]
[376113327,1753867842356,-1669.09,0.00019382,2]
[376113329,1753867842365,-460.0,0.00019382,2]
[376113331,1753867842375,-460.0,0.00019382,2]
[376113333,1753867842385,-460.0,0.00019382,2]
[376113335,1753867842394,-460.0,0.00019382,2]
[376113337,1753867842403,-208.72027163,0.00019382,2]
[376113339,1753867842412,-460.0,0.00019382,2]
[376113341,1753867842421,-460.0,0.00019382,2]
[376113343,1753867842431,-460.0,0.00019382,2]
[376113345,1753867842440,-1597.15,0.00019382,2]
[376113347,1753867842449,-460.0,0.00019382,2]
[376113349,1753867842459,-460.0,0.00019382,2]
[376113351,1753867842468,-460.0,0.00019382,2]
[376113353,1753867842477,-460.0,0.00019382,2]
[376113355,1753867842487,-759.81,0.00019382,2]
[376113358,1753867842496,-1146.23,0.00019382,2]
[376113360,1753867842505,-3040.12,0.00019382,2]
[376113362,1753867842517,-460.0,0.00019382,2]
[376113364,1753867842526,-464.30362,0.00019383,2]
[376113366,1753867842535,-460.0,0.00019383,2]
[376113368,1753867842544,-460.0,0.00019383,2]
[376113370,1753867842554,-460.0,0.00019383,2]
[376113372,1753867842563,-460.0,0.00019383,2]
[376113374,1753867842573,-460.0,0.00019383,2]
[376113376,1753867842583,-460.0,0.00019383,2]
[376113378,1753867842592,-460.0,0.00019383,2]
[376113380,1753867842601,-460.0,0.00019383,2]
[376113382,1753867842610,-460.0,0.00019383,2]
[376113384,1753867842619,-460.0,0.00019383,2]
[376113386,1753867842629,-460.0,0.00019383,2]
[376113388,1753867842639,-460.0,0.00019383,2]
[376113390,1753867842649,-460.0,0.00019383,2]
[376113392,1753867842658,-460.0,0.00019383,2]
[376113394,1753867842667,-460.0,0.00019383,2]
[376113396,1753867842676,-460.0,0.00019383,2]
[376113398,1753867842687,-460.0,0.00019383,2]
[376113400,1753867842696,-460.0,0.00019383,2]
[376113402,1753867842705,-460.0,0.00019383,2]
[376113404,1753867842715,-460.0,0.00019383,2]
[376113406,1753867842724,-460.0,0.00019383,2]
[376113408,1753867842733,-460.0,0.00019383,2]
[376113410,1753867842742,-460.0,0.00019383,2]
[376113412,1753867842751,-460.0,0.00019383,2]
[376113414,1753867842760,-460.0,0.00019383,2]
[376113416,1753867842774,-460.0,0.00019383,2]
[376113418,1753867842783,-460.0,0.00019383,2]
[376113420,1753867842792,-460.0,0.00019383,2]
[376113422,1753867842801,-1027.6,0.00019383,2]
[376113424,1753867842811,-460.0,0.00019383,2]
[376113426,1753867842821,-460.0,0.00019383,2]
[376113428,1753867842830,-460.0,0.00019383,2]
[376113430,1753867842840,-460.0,0.00019383,2]
[376113432,1753867842849,-460.0,0.00019383,2]
[376113434,1753867842859,-460.0,0.00019383,2]
[376113436,1753867842868,-460.0,0.00019383,2]
[376113438,1753867842877,-538.82,0.00019383,2]
[376113440,1753867842887,-460.0,0.00019383,2]
[376113442,1753867842898,-460.0,0.00019383,2]
[376113444,1753867842908,-460.0,0.00019383,2]
[376113446,1753867842917,-460.0,0.00019383,2]
[376113448,1753867842927,-460.0,0.00019383,2]
[376113450,1753867842937,-460.0,0.00019383,2]
[376113452,1753867842946,-460.0,0.00019383,2]
[376113454,1753867842956,-503.29,0.00019383,2]
[376113456,1753867842965,-460.0,0.00019383,2]
[376113458,1753867842975,-460.0,0.00019383,2]
[376113460,1753867842984,-460.0,0.00019383,2]
[376113461,1753867842993,-460.0,0.00019383,2]
[376113463,1753867843004,-460.0,0.00019383,2]
[376113465,1753867843017,-460.0,0.00019383,2]
[376113468,1753867843027,-460.0,0.00019383,2]
[376113470,1753867843036,-460.0,0.00019383,2]
[376113472,1753867843046,-460.0,0.00019383,2]
[376113474,1753867843055,-460.0,0.00019383,2]
[376113475,1753867843064,-270.06,0.00019384,2]
[376113477,1753867843073,-463.70005553,0.00019384,2]
[376113479,1753867843082,-460.0,0.00019384,2]
[376113481,1753867843092,-464.86400042,0.00019384,2]
[376113483,1753867843101,-460.0,0.00019384,2]
[376113485,1753867843110,-460.0,0.00019384,2]
[376113487,1753867843119,-460.0,0.00019384,2]
[376113489,1753867843129,-460.0,0.00019384,2]
[376113491,1753867843142,-460.0,0.00019384,2]
[376113493,1753867843152,-481.11,0.00019384,2]
[376113495,1753867843161,-479.06,0.00019384,2]
[376113497,1753867843171,-460.0,0.00019384,2]
[376113499,1753867843181,-460.0,0.00019384,2]
[376113501,1753867843191,-460.0,0.00019384,2]
[376113504,1753867843200,-460.0,0.00019384,2]
[376113506,1753867843210,-460.0,0.00019384,2]
[376113507,1753867843220,-180.88363173,0.00019384,2]
[376113509,1753867843229,-460.0,0.00019384,2]
[376113512,1753867843239,-460.0,0.00019384,2]
[376113513,1753867843248,-460.0,0.00019384,2]
[376113515,1753867843257,-460.0,0.00019384,2]
[376113518,1753867843268,-460.0,0.00019384,2]
[376113520,1753867843278,-460.0,0.00019384,2]
[376113522,1753867843287,-460.0,0.00019384,2]
[376113523,1753867843297,-460.0,0.00019384,2]
[376113525,1753867843306,-460.0,0.00019384,2]
[376113527,1753867843315,-460.0,0.00019384,2]
[376113529,1753867843324,-460.0,0.00019384,2]
[376113531,1753867843333,-460.0,0.00019384,2]
[376113533,1753867843343,-460.0,0.00019384,2]
[376113535,1753867843352,-460.0,0.00019384,2]
[376113537,1753867843362,-460.0,0.00019384,2]
[376113539,1753867843371,-460.0,0.00019384,2]
[376113541,1753867843380,-460.0,0.00019384,2]
[376113543,1753867843390,-460.0,0.00019384,2]
[376113545,1753867843399,-460.0,0.00019384,2]
[376113547,1753867843410,-460.0,0.00019384,2]
[376113549,1753867843419,-460.0,0.00019385,2]
[376113551,1753867843429,-460.0,0.00019385,2]
[376113553,1753867843439,-460.0,0.00019385,2]
[376113555,1753867843448,-460.0,0.00019385,2]
[376113557,1753867843457,-460.0,0.00019385,2]
[376113558,1753867843467,-460.0,0.00019385,2]
[376113559,1753867843477,-460.0,0.00019385,2]
[376113560,1753867843487,-460.0,0.00019385,2]
[376113561,1753867843496,-460.0,0.00019385,2]
[376113562,1753867843506,-479.94,0.00019385,2]
[376113563,1753867843517,-460.0,0.00019385,2]
[376113564,1753867843526,-460.0,0.00019385,2]
[376113565,1753867843536,-460.0,0.00019385,2]
[376113566,1753867843545,-460.0,0.00019385,2]
[376113567,1753867843554,-460.0,0.00019385,2]
[376113568,1753867843564,-460.0,0.00019385,2]
[376113569,1753867843573,-460.0,0.00019385,2]
[376113570,1753867843582,-460.0,0.00019385,2]
[376113571,1753867843592,-1275.2,0.00019385,2]
[376113572,1753867843602,-460.0,0.00019385,2]
[376113573,1753867843611,-460.0,0.00019385,2]
[376113574,1753867843620,-460.0,0.00019385,2]
[376113575,1753867843630,-460.0,0.00019385,2]
[376113576,1753867843639,-460.0,0.00019385,2]
[376113577,1753867843648,-559.32,0.00019385,2]
[376113578,1753867843658,-460.0,0.00019385,2]
[376113579,1753867843667,-460.0,0.00019385,2]
[376113580,1753867843676,-460.0,0.00019385,2]
[376113581,1753867843685,-460.0,0.00019386,2]
[376113582,1753867843694,-460.0,0.00019386,2]
[376113584,1753867843704,-460.0,0.00019386,2]
[376113586,1753867843713,-460.0,0.00019386,2]
[376113588,1753867843723,-1097.99,0.00019386,2]
[376113590,1753867843733,-500.0,0.00019386,2]
[376113592,1753867843742,-500.0,0.00019386,2]
[376113594,1753867843751,-460.0,0.00019387,2]
[376113595,1753867843760,-460.0,0.00019387,2]
[376113597,1753867843772,-460.0,0.00019387,2]
[376113599,1753867843781,-460.0,0.00019387,2]
[376113601,1753867843790,-460.0,0.00019387,2]
[376113603,1753867843800,-460.0,0.00019387,2]
[376113605,1753867843810,-460.0,0.00019387,2]
[376113607,1753867843819,-460.0,0.00019387,2]
[376113609,1753867843829,-500.0,0.00019387,2]
[376113612,1753867843839,-460.0,0.00019387,2]
[376113613,1753867843849,-460.0,0.00019387,2]
[376113615,1753867843858,-460.0,0.00019387,2]
[376113617,1753867843868,-460.0,0.00019387,2]
[376113620,1753867843877,-460.0,0.00019387,2]
[376113622,1753867843887,-460.0,0.00019387,2]
[376113623,1753867843896,-460.0,0.00019387,2]
[376113625,1753867843905,-460.0,0.00019387,2]
[376113627,1753867843915,-460.0,0.00019387,2]
[376113639,1753867844014,-460.0,0.00019387,2]
[376113641,1753867844026,-460.0,0.00019387,2]
[376113643,1753867844035,-460.0,0.00019387,2]
[376113645,1753867844044,-460.0,0.00019387,2]
[376113647,1753867844054,-460.0,0.00019387,2]
[376113649,1753867844063,-460.0,0.00019387,2]
[376113651,1753867844072,-460.0,0.00019387,2]
[376113653,1753867844081,-460.0,0.00019387,2]
[376113655,1753867844091,-460.0,0.00019387,2]
[376113657,1753867844101,-151.0,0.00019387,2]
[376113659,1753867844110,-460.0,0.00019387,2]
[376113661,1753867844120,-151.0,0.00019387,2]
[376113663,1753867844134,-151.0,0.00019387,2]
[376113665,1753867844143,-151.0,0.00019387,2]
[376113667,1753867844153,-498.37,0.00019388,2]
[376113669,1753867844162,-460.0,0.00019388,2]
[376113671,1753867844171,-460.0,0.0001939,2]
[376113673,1753867844181,-1571.36,0.0001939,2]
[376113675,1753867844190,-460.0,0.0001939,2]
[376113677,1753867844200,-692.59,0.0001939,2]
[376113679,1753867844209,-460.0,0.0001939,2]
[376113681,1753867844219,-184.80643897,0.0001939,2]
[376113683,1753867844228,-460.0,0.0001939,2]
[376113685,1753867844237,-1767.13,0.0001939,2]
[376113687,1753867844246,-414.924116,0.0001939,2]
[376113689,1753867844255,-414.924116,0.0001939,2]
[376113691,1753867844265,-460.0,0.0001939,2]
[376113693,1753867844275,-460.0,0.0001939,2]
[376113694,1753867844285,-151.000001,0.0001939,2]
[376113696,1753867844294,-460.0,0.0001939,2]
[376113698,1753867844304,-500.0,0.00019436,2]
[376113701,1753867844314,-44540.89770062,0.0001944,2]
[376113703,1753867844323,-1516.99729792,0.0001951,2]
[376113705,1753867844333,-184.0,0.00019522,2]
[376113707,1753867844342,-151.0,0.00019569,2]
[376113709,1753867844351,-159.734696,0.00019569,2]
[376113710,1753867844360,-354.0,0.00019582,2]
[376113713,1753867844369,-460.0,0.00019655,2]
[376113715,1753867844378,-498.50802805,0.00019655,2]
[376113717,1753867844388,-460.0,0.00019656,2]
[376113718,1753867844397,-460.0,0.00019656,2]
[376113721,1753867844406,-460.0,0.00019656,2]
[376113723,1753867844416,-1669.09,0.00019656,2]
[376113725,1753867844425,-460.0,0.00019656,2]
[376113726,1753867844435,-460.0,0.00019656,2]
[376113729,1753867844444,-460.0,0.00019656,2]
[376113731,1753867844453,-460.0,0.00019656,2]
[376113733,1753867844463,-460.0,0.00019656,2]
[376113735,1753867844472,-1597.15,0.00019656,2]
[376113737,1753867844481,-460.0,0.00019656,2]
[376113738,1753867844490,-460.0,0.00019656,2]
[376113740,1753867844499,-460.0,0.00019656,2]
[376113742,1753867844508,-321.29436596,0.00019656,2]
[376113744,1753867844517,-759.81,0.00019656,2]
[376113746,1753867844527,-1146.23,0.00019656,2]
[376113748,1753867844536,-3040.12,0.00019656,2]
[376113750,1753867844545,-460.0,0.00019656,2]
[376113752,1753867844555,-460.0,0.00019657,2]
[376113754,1753867844564,-460.0,0.00019657,2]
[376113756,1753867844573,-323.49149666,0.00019657,2]
[376113758,1753867844582,-460.0,0.00019657,2]
[376113760,1753867844591,-460.0,0.00019657,2]
[376113762,1753867844600,-460.0,0.00019657,2]
[376113764,1753867844609,-460.0,0.00019657,2]
[376113766,1753867844619,-460.0,0.00019657,2]
[376113768,1753867844628,-460.0,0.00019657,2]
[376113770,1753867844637,-465.35367499,0.00019657,2]
[376113772,1753867844646,-460.0,0.00019657,2]
[376113774,1753867844656,-572.95,0.00019657,2]
[376113776,1753867844665,-205.3792598,0.00019657,2]
[376113778,1753867844675,-602.34277853,0.00019657,2]
[376113780,1753867844684,-460.0,0.00019657,2]
[376113782,1753867844693,-460.0,0.00019657,2]
[376113784,1753867844703,-460.0,0.00019657,2]
[376113786,1753867844711,-460.0,0.00019657,2]
[376113788,1753867844721,-208.1435436,0.00019657,2]
[376113790,1753867844730,-460.0,0.00019657,2]
[376113792,1753867844739,-460.0,0.00019657,2]
[376113794,1753867844749,-460.0,0.00019657,2]
[376113796,1753867844758,-460.0,0.00019657,2]
[376113798,1753867844768,-460.0,0.00019657,2]
[376113800,1753867844777,-1027.6,0.00019657,2]
[376113802,1753867844787,-460.0,0.00019657,2]
[376113804,1753867844797,-460.0,0.00019657,2]
[376113806,1753867844806,-460.0,0.00019657,2]
[376113808,1753867844815,-460.0,0.00019657,2]
[376113810,1753867844824,-460.0,0.00019657,2]
[376113812,1753867844834,-460.0,0.00019657,2]
[376113814,1753867844843,-538.82,0.00019657,2]
[376113816,1753867844852,-460.0,0.00019657,2]
[376113818,1753867844862,-460.0,0.00019657,2]
[376113820,1753867844871,-460.0,0.00019657,2]
[376113822,1753867844880,-237.09,0.00019657,2]
[376113824,1753867844889,-460.0,0.00019657,2]
[376113826,1753867844898,-460.0,0.00019657,2]
[376113828,1753867844907,-460.0,0.00019657,2]
[376113830,1753867844917,-460.0,0.00019657,2]
[376113832,1753867844926,-460.0,0.00019657,2]
[376113834,1753867844935,-460.0,0.00019657,2]
[376113836,1753867844945,-460.0,0.00019657,2]
[376113838,1753867844954,-460.0,0.00019657,2]
[376113840,1753867844963,-460.0,0.00019657,2]
[376113842,1753867844972,-460.0,0.00019657,2]
[376113844,1753867844982,-460.0,0.00019657,2]
[376113846,1753867844993,-460.0,0.00019657,2]
[376113848,1753867845002,-460.0,0.00019658,2]
[376113850,1753867845012,-460.0,0.00019658,2]
[376113852,1753867845022,-426.83764551,0.00019658,2]
[376113854,1753867845032,-460.0,0.00019658,2]
[376113856,1753867845042,-460.0,0.00019658,2]
[376113858,1753867845053,-460.0,0.00019658,2]
[376113860,1753867845062,-460.0,0.00019658,2]
[376113862,1753867845071,-460.0,0.00019658,2]
[376113864,1753867845081,-460.0,0.00019658,2]
[376113866,1753867845090,-460.0,0.00019658,2]
[376113868,1753867845099,-460.0,0.00019658,2]
[376113870,1753867845109,-460.0,0.00019658,2]
[376113872,1753867845118,-460.0,0.00019658,2]
[376113874,1753867845128,-460.0,0.00019658,2]
[376113876,1753867845140,-460.0,0.00019658,2]
[376113878,1753867845150,-460.0,0.00019658,2]
[376113880,1753867845159,-460.0,0.00019658,2]
[376113882,1753867845168,-460.0,0.00019658,2]
[376113884,1753867845179,-460.0,0.00019658,2]
[376113886,1753867845188,-460.0,0.00019659,2]
[376113888,1753867845197,-460.0,0.00019659,2]
[376113890,1753867845207,-580.42,0.00019659,2]
[376113892,1753867845218,-460.0,0.00019659,2]
[376113894,1753867845227,-460.0,0.00019659,2]
[376113896,1753867845236,-460.0,0.00019659,2]
[376113898,1753867845245,-460.0,0.00019659,2]
[376113900,1753867845254,-460.0,0.00019659,2]
[376113902,1753867845263,-460.0,0.00019659,2]
[376113904,1753867845275,-248.86709771,0.00019659,2]
[376113906,1753867845284,-460.0,0.00019659,2]
[376113908,1753867845293,-460.0,0.00019659,2]
[376113910,1753867845302,-460.0,0.00019659,2]
[376113912,1753867845312,-1275.2,0.00019659,2]
[376113914,1753867845321,-460.0,0.00019659,2]
[376113916,1753867845330,-460.0,0.00019659,2]
[376113918,1753867845339,-460.0,0.00019659,2]
[376113920,1753867845349,-460.0,0.00019659,2]
[376113922,1753867845359,-460.0,0.0001966,2]
[376113924,1753867845368,-460.0,0.0001966,2]
[376113926,1753867845377,-460.0,0.0001966,2]
[376113928,1753867845386,-318.82108637,0.00019661,2]
[376113930,1753867845395,-460.0,0.00019661,2]
[376113932,1753867845405,-460.0,0.00019661,2]
[376113934,1753867845414,-460.0,0.00019661,2]
[376113937,1753867845423,-232.6598706,0.00019661,2]
[376113940,1753867845432,-460.0,0.00019661,2]
[376113943,1753867845443,-460.0,0.00019661,2]
[376113945,1753867845452,-460.0,0.00019661,2]
[376113947,1753867845461,-420.17718731,0.00019661,2]
[376113949,1753867845470,-460.0,0.00019661,2]
[376113952,1753867845480,-460.0,0.00019661,2]
[376113954,1753867845489,-151.0,0.00019661,2]
[376113956,1753867845498,-151.0,0.00019661,2]
[376113958,1753867845507,-151.0,0.00019661,2]
[376113960,1753867845516,-151.0,0.00019661,2]
[376113962,1753867845527,-474.02627055,0.00019661,2]
[376113964,1753867845536,-316.344225,0.00019661,2]
[376113966,1753867845545,-316.344225,0.00019661,2]
[376113968,1753867845555,-151.0,0.00019661,2]
[376113970,1753867845564,-151.0,0.00019661,2]
[376113972,1753867845573,-460.0,0.00019661,2]
[376113974,1753867845582,-460.0,0.00019661,2]
[376113976,1753867845591,-460.0,0.00019661,2]
[376113978,1753867845600,-516.46124477,0.00019661,2]
[376113980,1753867845609,-151.0,0.00019661,2]
[376113982,1753867845619,-151.0,0.00019661,2]
[376113984,1753867845628,-498.37,0.00019662,2]
[376113986,1753867845637,-460.0,0.00019662,2]
[376113988,1753867845646,-1097.99,0.00019663,2]
[376113990,1753867845656,-500.0,0.00019663,2]
[376113992,1753867845666,-1571.36,0.00019664,2]
[376113994,1753867845675,-460.0,0.00019664,2]
[376113996,1753867845684,-692.59,0.00019664,2]
[376113998,1753867845693,-460.0,0.00019664,2]
[376114000,1753867845702,-460.0,0.00019664,2]
[376114002,1753867845711,-1767.13,0.00019664,2]
[376114004,1753867845721,-460.0,0.00019664,2]
[376114006,1753867845730,-460.0,0.00019664,2]
[376114008,1753867845739,-461.92713244,0.00019664,2]
[376114010,1753867845748,-339.14841413,0.00019694,2]
[376114012,1753867845758,-1000.0,0.00019721,2]
[376114014,1753867845769,-205.782756,0.00019721,2]
[376114016,1753867845778,-1000.0,0.00019721,2]
[376114018,1753867845788,-1070.85699928,0.00019721,2]
[376114020,1753867845797,-1516.99729792,0.00019896,2]
[376114022,1753867845806,-1000.0,0.00019921,2]
[376114024,1753867845816,-460.0,0.00019929,2]
[376114035,1753867845910,-460.0,0.0001993,2]
[376114037,1753867845920,-1669.09,0.0001993,2]
[376114039,1753867845930,-460.0,0.0001993,2]
[376114041,1753867845941,-460.0,0.0001993,2]
[376114043,1753867845951,-460.0,0.0001993,2]
[376114045,1753867845960,-460.0,0.0001993,2]
[376114047,1753867845977,-1597.15,0.0001993,2]
[376114050,1753867845986,-460.0,0.0001993,2]
[376114052,1753867845995,-460.0,0.0001993,2]
[376114054,1753867846005,-460.0,0.0001993,2]
[376114056,1753867846014,-759.81,0.0001993,2]
[376114058,1753867846027,-1146.23,0.0001993,2]
[376114060,1753867846036,-3040.12,0.0001993,2]
[376114062,1753867846045,-460.0,0.0001993,2]
[376114064,1753867846054,-460.0,0.00019931,2]
[376114065,1753867846063,-460.0,0.00019931,2]
[376114068,1753867846073,-460.0,0.00019931,2]
[376114070,1753867846082,-460.0,0.00019931,2]
[376114072,1753867846091,-538.43765481,0.00019931,2]
[376114074,1753867846101,-460.0,0.00019931,2]
[376114076,1753867846110,-460.0,0.00019931,2]
[376114078,1753867846120,-460.0,0.00019931,2]
[376114079,1753867846129,-460.0,0.00019931,2]
[376114081,1753867846142,-460.0,0.00019931,2]
[376114084,1753867846152,-460.0,0.00019931,2]
[376114086,1753867846162,-460.0,0.00019931,2]
[376114088,1753867846171,-460.0,0.00019931,2]
[376114090,1753867846181,-460.0,0.00019931,2]
[376114092,1753867846190,-1027.6,0.00019931,2]
[376114093,1753867846199,-460.0,0.00019931,2]
[376114096,1753867846208,-555.00328478,0.00019931,2]
[376114100,1753867846219,-468.27,0.00019931,2]
[376114102,1753867846230,-460.0,0.00019931,2]
[376114104,1753867846239,-460.0,0.00019931,2]
[376114106,1753867846248,-538.82,0.00019931,2]
[376114108,1753867846257,-460.0,0.00019931,2]
[376114110,1753867846266,-460.0,0.00019931,2]
[376114112,1753867846277,-460.0,0.00019931,2]
[376114114,1753867846287,-460.0,0.00019931,2]
[376114116,1753867846296,-460.0,0.00019931,2]
[376114118,1753867846305,-529.69,0.00019931,2]
[376114119,1753867846314,-460.0,0.00019931,2]
[376114122,1753867846324,-462.67070446,0.00019931,2]
[376114123,1753867846334,-460.0,0.00019931,2]
[376114126,1753867846343,-460.0,0.00019931,2]
[376114128,1753867846353,-460.0,0.00019931,2]
[376114129,1753867846362,-483.86,0.00019931,2]
[376114132,1753867846372,-460.0,0.00019931,2]
[376114133,1753867846381,-460.0,0.00019931,2]
[376114136,1753867846391,-460.0,0.00019932,2]
[376114138,1753867846400,-460.0,0.00019932,2]
[376114139,1753867846409,-460.0,0.00019932,2]
[376114142,1753867846419,-460.0,0.00019932,2]
[376114144,1753867846428,-460.0,0.00019932,2]
[376114145,1753867846437,-460.0,0.00019932,2]
[376114148,1753867846448,-460.0,0.00019932,2]
[376114149,1753867846457,-460.0,0.00019932,2]
[376114151,1753867846466,-460.0,0.00019932,2]
[376114153,1753867846476,-460.0,0.00019932,2]
[376114155,1753867846485,-460.0,0.00019932,2]
[376114158,1753867846495,-460.0,0.00019932,2]
[376114160,1753867846504,-151.0,0.00019932,2]
[376114162,1753867846513,-151.0,0.00019932,2]
[376114164,1753867846523,-460.0,0.00019932,2]
[376114166,1753867846533,-460.0,0.00019932,2]
[376114168,1753867846542,-511.18,0.00019932,2]
[376114169,1753867846551,-460.0,0.00019932,2]
[376114171,1753867846561,-187.899252,0.00019932,2]
[376114174,1753867846570,-462.28,0.00019933,2]
[376114175,1753867846579,-155.95801313,0.00019933,2]
[376114178,1753867846589,-460.0,0.00019933,2]
[376114180,1753867846598,-460.0,0.00019933,2]
[376114182,1753867846607,-460.0,0.00019933,2]
[376114184,1753867846617,-460.0,0.00019933,2]
[376114186,1753867846626,-460.0,0.00019933,2]
[376114188,1753867846636,-1275.2,0.00019933,2]
[376114190,1753867846645,-460.0,0.00019933,2]
[376114191,1753867846654,-460.0,0.00019933,2]
[376114194,1753867846664,-460.0,0.00019933,2]
[376114195,1753867846673,-256.18,0.00019934,2]
[376114198,1753867846683,-500.0,0.00019934,2]
[376114199,1753867846691,-460.0,0.00019935,2]
[376114202,1753867846701,-542.4,0.00019935,2]
[376114204,1753867846710,-460.0,0.00019935,2]
[376114206,1753867846720,-376.8194791,0.00019935,2]
[376114207,1753867846729,-540.03138953,0.00019935,2]
[376114210,1753867846739,-498.37,0.00019936,2]
[376114212,1753867846748,-460.0,0.00019936,2]
[376114214,1753867846757,-1571.36,0.00019938,2]
[376114216,1753867846767,-460.0,0.00019938,2]
[376114217,1753867846777,-692.59,0.00019938,2]
[376114219,1753867846786,-460.0,0.00019938,2]
[376114222,1753867846796,-1767.13,0.00019938,2]
[376114223,1753867846805,-460.0,0.00019938,2]
[376114225,1753867846814,-2261.56381658,0.00019955,2]
[376114228,1753867846824,-526.94284714,0.0001999,2]
[376114230,1753867846833,-9389.74401402,0.0002,2]
[376114232,1753867846843,-3199.80301715,0.0002,2]
[376114234,1753867846852,-363.32028988,0.0002,2]
[376114236,1753867846861,-16619.76841036,0.0002,2]
[376114238,1753867846871,-477.49354215,0.00020054,2]
[376114240,1753867846880,-414.924116,0.00020084,2]
[376114242,1753867846889,-414.924116,0.00020084,2]
[376114244,1753867846898,-12639.5777639,0.00020084,2]
[376114245,1753867846907,-160.0,0.00020084,2]
[376114247,1753867846917,-160.0,0.00020084,2]
[376114250,1753867846927,-841.2246943,0.00020084,2]
[376114251,1753867846936,-160.0,0.00020084,2]
[376114253,1753867846945,-231.43925844,0.00020084,2]